[Event "DEN-chT XtraCon 2018-19"]
[Site "Denmark"]
[Date "2019.01.13"]
[Round "6"]
[White "Hansen, Lars"]
[Black "Grubert, Christian"]
[Result "1/2-1/2"]
[ECO "B95"]
[WhiteElo "2198"]
[BlackElo "2165"]
[Annotator "NA"]
[PlyCount "52"]
[EventDate "2018.10.27"]
[EventType "team-tourn"]
[EventCountry "DEN"]
[SourceTitle "playchess.com"]
[Source "ChessBase"]
[SourceQuality "1"]
[TimeControl "40/5400+30:1800+30"]

1. d4 g6 2. e4 Bg7 3. Nc3 d6 4. Be3 Nf6 5. Qd2 O-O 6. f3 Nbd7 7. Bh6 e5 8. dxe5 Nxe4 9. Nxe4 Qh4+ 10. g3 Qxh6 11. Qxh6 Bxh6 12. exd6 f5 13. Bc4+ Kh8 14. Nc3 cxd6 15. f4 Nb6 16. Bb3 Bd7 17. O-O-O Bc6 18. Nd5 Rae8 19. Nf3 Bg7 20. Rhf1 Bb5 21. Rfe1 Be2 22. Ng5 h6 23. Rd2 Bg4 24. Nf7+ Kh7 25. Rxe8 Rxe8 26. c3 Re1+ 1/2-1/2

[Event "DEN-chT XtraCon 2018-19"]
[Site "Denmark"]
[Date "2019.01.13"]
[Round "6"]
[White "Vesterli, Michael E."]
[Black "Laursen, Niels Norskov"]
[Result "1-0"]
[ECO "E94"]
[WhiteElo "2167"]
[BlackElo "2276"]
[Annotator "NA"]
[PlyCount "75"]
[EventDate "2018.10.27"]
[EventType "team-tourn"]
[EventCountry "DEN"]
[SourceTitle "playchess.com"]
[Source "ChessBase"]
[SourceQuality "1"]
[TimeControl "40/5400+30:1800+30"]

1. d4 {[%emt 0:00:00]} d6 {[%emt 0:00:00]} 2. c4 {[%emt 0:00:00]} g6 {[%emt 0:00:12]} 3. Nc3 {[%emt 0:00:00]} Bg7 {[%emt 0:00:08]} 4. e4 {[%emt 0:00:00]} Nf6 {[%emt 0:00:09]} 5. Nf3 {[%emt 0:00:48]} O-O {[%emt 0:00:05]} 6. Be2 {[%emt 0:00:04]} e5 {[%emt 0:00:11]} 7. O-O {[%emt 0:00:08]} Na6 {[%emt 0:00:05]} 8. Re1 {[%emt 0:01:54]} c6 {[%emt 0:00:25]} 9. Rb1 {[%emt 0:05:24]} exd4 {[%emt 0:04:34]} 10. Nxd4 {[%emt 0:00:09]} Re8 {[%emt 0:00:47]} 11. Bf1 {[%emt 0:03:48]} Qb6 {[%emt 0:08:12]} 12. Na4 {[%emt 0:18:11]} Qc7 {[%emt 0:09:54]} 13. f3 {[%emt 0:01:24]} d5 {[%emt 0:07:19]} 14. cxd5 {[%emt 0:01:32]} cxd5 {[%emt 0:01:19]} 15. Nb5 {[%emt 0:01:37]} Qb8 {[%emt 0:01:33]} 16. g3 {[%emt 0:12:32]} Bd7 {[%emt 0:07:41]} 17. Bf4 {[%emt 0:00:17]} Qd8 {[%emt 0:00:36]} 18. Nd6 {[%emt 0:18:19]} Bxa4 {[%emt 0:01:50]} 19. Qxa4 {[%emt 0:00:06]} Re6 {[%emt 0:02:37]} 20. e5 {[%emt 0:02:18]} Nh5 {[%emt 0:02:10]} 21. Be3 {[%emt 0:01:40]} Rxe5 {[%emt 0:05:02]} 22. Nxb7 {[%emt 0:01:30]} Qe7 {[%emt 0:01:10]} 23. Bf2 {[%emt 0:03:45]} Nc7 {[%emt 0:02:36]} 24. Na5 {[%emt 0:01:39]} Ne6 {[%emt 0:04:48]} 25. Nc6 {[%emt 0:03:16]} Qd7 {[%emt 0:03:09]} 26. Rxe5 {[%emt 0:00:07]} Bxe5 {[%emt 0:00:05]} 27. Bb5 {[%emt 0:00:05]} Bd6 {[%emt 0:03:02]} 28. Nb4 {[%emt 0:02:29]} Qe7 {[%emt 0:05:31]} 29. Nxd5 {[%emt 0:00:16]} Qg5 {[%emt 0:00:19]} 30. Qe4 {[%emt 0:01:54]} Rb8 {[%emt 0:07:55]} 31. Bc4 {[%emt 0:02:45]} Nxg3 {[%emt 0:06:17]} 32. hxg3 {[%emt 0:00:53]} Bxg3 {[%emt 0:00:08]} 33. Ne3 {[%emt 0:04:52]} Nf4 {[%emt 0:01:13]} 34. Ng4 {[%emt 0:03:11]} Bxf2+ {[%emt 0:10:56]} 35. Kxf2 {[%emt 0:00:06]} Rd8 {[%emt 0:00:16]} 36. Rd1 {[%emt 0:03:26]} Qc5+ {[%emt 0:03:29]} 37. Qe3 {[%emt 0:01:12]} Nh3+ {[%emt 0:02:07]} 38. Kg2 {[%emt 0:00:11]} 1-0

[Event "DEN-chT XtraCon 2018-19"]
[Site "Denmark"]
[Date "2019.01.13"]
[Round "6"]
[White "Brorsen, Jacob Abildlund"]
[Black "Skousen, Nikolai"]
[Result "1/2-1/2"]
[ECO "B36"]
[WhiteElo "2132"]
[BlackElo "2227"]
[Annotator "NA"]
[PlyCount "93"]
[EventDate "2018.10.27"]
[EventType "team-tourn"]
[EventCountry "DEN"]
[SourceTitle "playchess.com"]
[Source "ChessBase"]
[SourceQuality "1"]
[TimeControl "40/5400+30:1800+30"]

1. e4 {[%emt 0:00:00]} c5 {[%emt 0:00:00]} 2. Nf3 {[%emt 0:00:00]} Nc6 {[%emt 0:01:04]} 3. d4 {[%emt 0:01:20]} cxd4 {[%emt 0:00:10]} 4. Nxd4 {[%emt 0:00:05]} g6 {[%emt 0:00:06]} 5. c4 {[%emt 0:04:48]} Nf6 {[%emt 0:01:02]} 6. Nc3 {[%emt 0:00:43]} d6 {[%emt 0:00:08]} 7. Be2 {[%emt 0:02:04]} Nxd4 {[%emt 0:00:24]} 8. Qxd4 {[%emt 0:00:12]} Bg7 {[%emt 0:00:04]} 9. O-O {[%emt 0:03:09]} O-O {[%emt 0:01:04]} 10. Bg5 {[%emt 0:06:12]} h6 {[%emt 0:22:22]} 11. Bd2 {[%emt 0:04:38]} Ng4 {[%emt 0:28:28]} 12. Qd3 {[%emt 0:04:07]} Ne5 {[%emt 0:09:27]} 13. Qg3 {[%emt 0:01:58]} g5 {[%emt 0:03:11]} 14. Kh1 {[%emt 0:04:53]} Ng6 {[%emt 0:00:24]} 15. Rad1 {[%emt 0:03:19]} Qb6 {[%emt 0:08:46]} 16. b3 {[%emt 0:11:22]} Be6 {[%emt 0:01:52]} 17. Nb5 {[%emt 0:17:54]} a6 {[%emt 0:01:48]} 18. Nc3 {[%emt 0:03:24]} Qd4 {[%emt 0:02:57]} 19. Qd3 {[%emt 0:07:51]} Rfc8 {[%emt 0:04:31]} 20. Rc1 {[%emt 0:03:32]} Qxd3 {[%emt 0:03:35]} 21. Bxd3 {[%emt 0:00:02]} Rc6 22. Nd5 {[%emt 0:00:48]} Rac8 {[%emt 0:02:02]} 23. Be3 {[%emt 0:02:13]} Kf8 {[%emt 0:01:41]} 24. Kg1 {[%emt 0:03:23]} Ne5 {[%emt 0:01:42]} 25. Be2 {[%emt 0:01:35]} Ng4 {[%emt 0:01:33]} 26. Bxg4 {[%emt 0:02:02]} Bxg4 {[%emt 0:00:01]} 27. f4 {[%emt 0:01:34]} gxf4 {[%emt 0:03:22]} 28. Rxf4 {[%emt 0:00:24]} Be6 {[%emt 0:00:10]} 29. Rcf1 {[%emt 0:01:43]} b5 {[%emt 0:01:11]} 30. Nb4 {[%emt 0:02:36]} bxc4 {[%emt 0:00:28]} 31. Nxc6 {[%emt 0:00:09]} Rxc6 {[%emt 0:00:08]} 32. bxc4 {[%emt 0:00:23]} Rxc4 {[%emt 0:00:11]} 33. Rb1 {[%emt 0:01:22]} Kg8 {[%emt 0:00:55]} 34. Rb8+ {[%emt 0:03:26]} Kh7 {[%emt 0:00:02]} 35. Ra8 {[%emt 0:01:28]} Ra4 {[%emt 0:00:30]} 36. e5 {[%emt 0:02:35]} Rxa2 {[%emt 0:01:05]} 37. exd6 {[%emt 0:00:34]} exd6 {[%emt 0:00:03]} 38. Rd8 {[%emt 0:00:36]} d5 {[%emt 0:01:18]} 39. g3 {[%emt 0:00:28]} Ra1+ {[%emt 0:00:43]} 40. Kf2 {[%emt 0:00:21]} Ra2+ {[%emt 0:00:05]} 41. Kg1 {[%emt 0:30:09]} Ra1+ {[%emt 0:31:13]} 42. Kg2 {[%emt 0:00:00]} Ra2+ {[%emt 0:00:00]} 43. Rf2 {[%emt 0:00:00]} Ra3 {[%emt 0:00:00]} 44. Bc5 {[%emt 0:00:00]} Ra5 {[%emt 0:00:00]} 45. Be3 {[%emt 0:00:00]} Ra3 {[%emt 0:00:00]} 46. Bc5 {[%emt 0:00:00]} Ra5 {[%emt 0:00:00]} 47. Be3 {[%emt 0:00:00]} 1/2-1/2

[Event "DEN-chT XtraCon 2018-19"]
[Site "Denmark"]
[Date "2019.01.13"]
[Round "6"]
[White "Svenninggaard, Thomas"]
[Black "Ochsner, Thomas"]
[Result "1/2-1/2"]
[ECO "C77"]
[WhiteElo "2131"]
[BlackElo "2289"]
[Annotator "NA"]
[PlyCount "95"]
[EventDate "2018.10.27"]
[EventType "team-tourn"]
[EventCountry "DEN"]
[SourceTitle "playchess.com"]
[Source "ChessBase"]
[SourceQuality "1"]
[TimeControl "40/5400+30:1800+30"]

1. e4 {[%emt 0:00:00]} e5 {[%emt 0:00:00]} 2. Nf3 {[%emt 0:00:00]} Nc6 {[%emt 0:00:00]} 3. Bb5 {[%emt 0:00:00]} a6 {[%emt 0:01:12]} 4. Ba4 {[%emt 0:00:08]} Nf6 {[%emt 0:00:08]} 5. d3 {[%emt 0:00:20]} d6 {[%emt 0:03:08]} 6. h3 {[%emt 0:03:24]} b5 {[%emt 0:05:39]} 7. Bb3 {[%emt 0:00:13]} Na5 {[%emt 0:00:14]} 8. Bg5 {[%emt 0:03:17]} Be7 {[%emt 0:01:22]} 9. O-O {[%emt 0:00:34]} O-O {[%emt 0:01:37]} 10. Nbd2 {[%emt 0:02:40]} h6 {[%emt 0:12:19]} 11. Bxf6 {[%emt 0:06:05]} Bxf6 {[%emt 0:00:08]} 12. Re1 {[%emt 0:00:17]} Bb7 {[%emt 0:08:34]} 13. Nf1 {[%emt 0:14:26]} Nxb3 {[%emt 0:05:55]} 14. axb3 {[%emt 0:00:19]} g6 {[%emt 0:00:08]} 15. c4 {[%emt 0:13:39]} Bg7 {[%emt 0:03:47]} 16. Qd2 {[%emt 0:03:52]} c6 {[%emt 0:07:55]} 17. Ng3 {[%emt 0:12:17]} Qb6 {[%emt 0:05:11]} 18. h4 {[%emt 0:08:19]} Bc8 {[%emt 0:01:39]} 19. h5 {[%emt 0:02:20]} Be6 {[%emt 0:02:47]} 20. Qa5 {[%emt 0:03:38]} Qxa5 {[%emt 0:01:58]} 21. Rxa5 {[%emt 0:00:10]} Rfb8 {[%emt 0:00:50]} 22. hxg6 {[%emt 0:02:42]} fxg6 {[%emt 0:00:09]} 23. Rea1 {[%emt 0:01:36]} bxc4 {[%emt 0:01:04]} 24. bxc4 {[%emt 0:00:31]} Bc8 {[%emt 0:00:23]} 25. c5 {[%emt 0:03:23]} dxc5 {[%emt 0:03:01]} 26. Rxc5 {[%emt 0:00:24]} Rxb2 {[%emt 0:00:30]} 27. Rxc6 {[%emt 0:00:17]} a5 {[%emt 0:09:42]} 28. Rxg6 {[%emt 0:05:44]} Kf7 {[%emt 0:04:11]} 29. Rc6 {[%emt 0:01:55]} Bd7 {[%emt 0:06:25]} 30. Rc7 {[%emt 0:03:09]} Ke8 {[%emt 0:00:07]} 31. Nh5 {[%emt 0:01:42]} Bh8 {[%emt 0:00:48]} 32. Ra3 {[%emt 0:01:37]} a4 {[%emt 0:01:12]} 33. Nh4 {[%emt 0:00:50]} Kd8 {[%emt 0:04:05]} 34. Rc4 {[%emt 0:02:49]} Be8 {[%emt 0:00:25]} 35. g4 {[%emt 0:02:24]} Rc8 {[%emt 0:02:15]} 36. Rxc8+ {[%emt 0:00:46]} Kxc8 {[%emt 0:00:02]} 37. Nf5 {[%emt 0:00:18]} Kc7 {[%emt 0:01:04]} 38. Ne3 {[%emt 0:00:42]} Rb3 {[%emt 0:01:46]} 39. Nc4 {[%emt 0:01:28]} Rxa3 {[%emt 0:07:07]} 40. Nxa3 {[%emt 0:00:11]} Kc6 {[%emt 0:00:34]} 41. Kf1 {[%emt 0:03:59]} Kc5 {[%emt 0:04:20]} 42. Nc2 {[%emt 0:04:09]} Bxh5 {[%emt 0:01:21]} 43. gxh5 {[%emt 0:00:26]} Bf6 {[%emt 0:00:05]} 44. Ke2 {[%emt 0:07:13]} Bg5 {[%emt 0:05:05]} 45. d4+ {[%emt 0:05:36]} exd4 {[%emt 0:05:12]} 46. Kd3 {[%emt 0:00:21]} Bc1 47. Nxd4 Bb2 48. Nc2 1/2-1/2

[Event "DEN-chT XtraCon 2018-19"]
[Site "Denmark"]
[Date "2019.01.13"]
[Round "6"]
[White "Ejsing, Esben"]
[Black "Pedersen, Nicolai Kvist Brond"]
[Result "1/2-1/2"]
[ECO "A05"]
[WhiteElo "2127"]
[BlackElo "2262"]
[Annotator "NA"]
[PlyCount "98"]
[EventDate "2018.10.27"]
[EventType "team-tourn"]
[EventCountry "DEN"]
[SourceTitle "playchess.com"]
[Source "ChessBase"]
[SourceQuality "1"]
[TimeControl "40/5400+30:1800+30"]

1. Nf3 {[%emt 0:00:00]} Nf6 {[%emt 0:00:44]} 2. g3 {[%emt 0:00:21]} b5 {[%emt 0:01:14]} 3. Bg2 {[%emt 0:00:14]} Bb7 {[%emt 0:00:10]} 4. O-O {[%emt 0:00:15]} e6 {[%emt 0:01:32]} 5. d3 {[%emt 0:06:46]} Be7 {[%emt 0:04:40]} 6. e4 {[%emt 0:01:48]} d6 {[%emt 0:01:30]} 7. b3 {[%emt 0:03:18]} c5 {[%emt 0:06:05]} 8. Bb2 {[%emt 0:00:13]} O-O {[%emt 0:03:27]} 9. Nbd2 {[%emt 0:02:03]} Nc6 {[%emt 0:11:57]} 10. c4 {[%emt 0:29:24]} a6 {[%emt 0:08:20]} 11. h4 {[%emt 0:00:12]} Qc7 {[%emt 0:08:51]} 12. Bh3 {[%emt 0:02:07]} Rfd8 {[%emt 0:06:15]} 13. Qe2 {[%emt 0:05:44]} Nd7 {[%emt 0:04:26]} 14. Rac1 {[%emt 0:09:52]} Bf6 {[%emt 0:04:24]} 15. Bxf6 {[%emt 0:01:26]} Nxf6 {[%emt 0:00:21]} 16. Nb1 {[%emt 0:03:55]} bxc4 {[%emt 0:06:30]} 17. bxc4 {[%emt 0:00:44]} Rab8 {[%emt 0:02:41]} 18. Nc3 {[%emt 0:02:29]} Ba8 {[%emt 0:00:52]} 19. h5 {[%emt 0:06:29]} Nxh5 {[%emt 0:06:17]} 20. Qe3 {[%emt 0:07:36]} Nf6 {[%emt 0:01:01]} 21. g4 {[%emt 0:00:41]} Ne7 {[%emt 0:04:55]} 22. g5 {[%emt 0:00:51]} Nd7 {[%emt 0:00:42]} 23. Nh2 {[%emt 0:01:27]} Re8 {[%emt 0:02:24]} 24. f4 {[%emt 0:00:15]} d5 {[%emt 0:01:03]} 25. cxd5 {[%emt 0:02:44]} exd5 {[%emt 0:00:49]} 26. Na4 {[%emt 0:00:07]} dxe4 {[%emt 0:01:27]} 27. Bxd7 {[%emt 0:01:32]} Qxd7 {[%emt 0:02:29]} 28. Nxc5 {[%emt 0:00:09]} Qa7 {[%emt 0:01:21]} 29. dxe4 {[%emt 0:00:45]} Rbc8 {[%emt 0:00:52]} 30. Qf2 {[%emt 0:01:01]} Ng6 {[%emt 0:00:55]} 31. f5 {[%emt 0:02:51]} Ne5 {[%emt 0:01:23]} 32. Rfd1 {[%emt 0:01:31]} Red8 {[%emt 0:02:12]} 33. Rxd8+ {[%emt 0:00:48]} Rxd8 {[%emt 0:00:01]} 34. Nf3 {[%emt 0:02:30]} Nxf3+ {[%emt 0:00:44]} 35. Qxf3 {[%emt 0:00:07]} Rc8 {[%emt 0:00:38]} 36. Qe3 {[%emt 0:00:27]} Qe7 {[%emt 0:02:11]} 37. Nxa6 {[%emt 0:02:18]} Rxc1+ {[%emt 0:01:04]} 38. Qxc1 {[%emt 0:00:01]} Bxe4 {[%emt 0:01:13]} 39. Qc8+ {[%emt 0:02:39]} Qf8 {[%emt 0:00:02]} 40. Qxf8+ {[%emt 0:00:47]} Kxf8 {[%emt 0:00:01]} 41. f6 {[%emt 0:30:12]} gxf6 {[%emt 0:04:26]} 42. gxf6 {[%emt 0:00:00]} Ke8 {[%emt 0:05:29]} 43. Nc5 {[%emt 0:00:00]} Bc6 {[%emt 0:03:33]} 44. Kf2 {[%emt 0:00:00]} Kd8 {[%emt 0:00:10]} 45. Ke3 {[%emt 0:00:00]} Kc7 {[%emt 0:01:54]} 46. Ne6+ {[%emt 0:00:00]} Kd6 {[%emt 0:02:53]} 47. Ng5 {[%emt 0:00:00]} Ke5 {[%emt 0:05:32]} 48. Nxf7+ {[%emt 0:00:00]} Kxf6 {[%emt 0:00:11]} 49. Nd6 {[%emt 0:00:00]} Ba4 {[%emt 0:00:19]} 1/2-1/2

[Event "DEN-chT XtraCon 2018-19"]
[Site "Denmark"]
[Date "2019.01.13"]
[Round "6"]
[White "Wilbrandt, Simon Pil"]
[Black "Ramsdal, Jens Albert"]
[Result "0-1"]
[ECO "E71"]
[WhiteElo "2117"]
[BlackElo "2251"]
[Annotator "NA"]
[PlyCount "94"]
[EventDate "2018.10.27"]
[EventType "team-tourn"]
[EventCountry "DEN"]
[SourceTitle "playchess.com"]
[Source "ChessBase"]
[SourceQuality "1"]
[TimeControl "40/5400+30:1800+30"]

1. d4 {[%emt 0:00:00]} Nf6 {[%emt 0:00:00]} 2. c4 {[%emt 0:00:00]} g6 {[%emt 0:00:00]} 3. Nc3 {[%emt 0:00:00]} Bg7 {[%emt 0:00:00]} 4. e4 {[%emt 0:00:00]} d6 {[%emt 0:00:00]} 5. h3 {[%emt 0:00:40]} O-O {[%emt 0:00:16]} 6. Be3 {[%emt 0:00:03]} c5 {[%emt 0:00:38]} 7. dxc5 {[%emt 0:01:03]} dxc5 {[%emt 0:00:09]} 8. Qxd8 {[%emt 0:00:06]} Rxd8 {[%emt 0:00:04]} 9. Bxc5 {[%emt 0:00:06]} Nc6 {[%emt 0:00:06]} 10. Nf3 {[%emt 0:01:00]} b6 {[%emt 0:04:22]} 11. Be3 {[%emt 0:00:06]} Bb7 {[%emt 0:01:04]} 12. Nd2 {[%emt 0:01:10]} Nd4 {[%emt 0:06:20]} 13. O-O-O {[%emt 0:04:43]} Nd7 {[%emt 0:07:08]} 14. Nb3 {[%emt 0:11:53]} Nxb3+ {[%emt 0:03:54]} 15. axb3 {[%emt 0:00:06]} Bxc3 {[%emt 0:03:03]} 16. bxc3 {[%emt 0:00:07]} Bxe4 {[%emt 0:00:07]} 17. f3 {[%emt 0:05:32]} Bf5 {[%emt 0:07:03]} 18. g4 {[%emt 0:05:26]} Be6 {[%emt 0:00:01]} 19. f4 {[%emt 0:00:30]} Nc5 {[%emt 0:06:53]} 20. Rxd8+ {[%emt 0:03:18]} Rxd8 {[%emt 0:00:03]} 21. Bxc5 {[%emt 0:00:08]} bxc5 {[%emt 0:00:09]} 22. Be2 {[%emt 0:01:34]} Bc8 {[%emt 0:22:48]} 23. Rd1 {[%emt 0:06:45]} Rxd1+ {[%emt 0:03:05]} 24. Kxd1 {[%emt 0:05:36]} Bb7 {[%emt 0:00:05]} 25. b4 {[%emt 0:00:25]} Kg7 {[%emt 0:20:27]} 26. Kd2 {[%emt 0:04:25]} Kf6 {[%emt 0:03:33]} 27. Ke3 {[%emt 0:02:15]} g5 {[%emt 0:05:13]} 28. Bf3 {[%emt 0:04:09]} Bc8 {[%emt 0:00:04]} 29. Bd5 {[%emt 0:09:46]} e6 {[%emt 0:00:10]} 30. Be4 {[%emt 0:02:05]} h6 {[%emt 0:00:02]} 31. Ba8 {[%emt 0:01:47]} Ke7 {[%emt 0:00:10]} 32. Ke4 {[%emt 0:02:35]} Kd6 {[%emt 0:00:00]} 33. Ke3 {[%emt 0:03:33]} f6 {[%emt 0:00:08]} 34. Bf3 Ba6 {[%emt 0:03:57]} 35. Be2 Bb7 {[%emt 0:00:30]} 36. Bf3 {[%emt 0:25:01]} Kc7 {[%emt 0:00:01]} 37. Bxb7 {[%emt 0:00:30]} Kxb7 {[%emt 0:00:30]} 38. Ke4 {[%emt 0:00:30]} gxf4 {[%emt 0:00:30]} 39. Kxf4 {[%emt 0:00:30]} a5 {[%emt 0:03:47]} 40. bxa5 {[%emt 0:00:28]} Ka6 {[%emt 0:00:01]} 41. h4 {[%emt 0:05:04]} Kxa5 {[%emt 0:30:30]} 42. g5 {[%emt 0:00:30]} hxg5+ {[%emt 0:00:30]} 43. hxg5 {[%emt 0:00:30]} fxg5+ {[%emt 0:00:30]} 44. Kxg5 {[%emt 0:00:30]} Ka4 {[%emt 0:00:30]} 45. Kf6 {[%emt 0:00:30]} Kb3 {[%emt 0:00:30]} 46. Kxe6 {[%emt 0:00:30]} Kxc3 {[%emt 0:00:30]} 47. Kd5 {[%emt 0:00:30]} Kb4 {[%emt 0:00:30]} 0-1

[Event "DEN-chT XtraCon 2018-19"]
[Site "Denmark"]
[Date "2019.01.13"]
[Round "6"]
[White "Pedersen, Lars"]
[Black "Percivaldi, Martin"]
[Result "0-1"]
[ECO "D21"]
[WhiteElo "2082"]
[BlackElo "2395"]
[Annotator "NA"]
[PlyCount "80"]
[EventDate "2018.10.27"]
[EventType "team-tourn"]
[EventCountry "DEN"]
[SourceTitle "playchess.com"]
[Source "ChessBase"]
[SourceQuality "1"]
[TimeControl "40/5400+30:1800+30"]

1. d4 {[%emt 0:00:00]} d5 {[%emt 0:00:00]} 2. c4 {[%emt 0:00:00]} dxc4 {[%emt 0:00:00]} 3. Nf3 {[%emt 0:01:14]} a6 {[%emt 0:00:12]} 4. Nc3 {[%emt 0:01:40]} b5 {[%emt 0:03:02]} 5. a4 {[%emt 0:03:17]} b4 {[%emt 0:01:05]} 6. Nb1 {[%emt 0:02:08]} Bb7 {[%emt 0:02:00]} 7. e3 {[%emt 0:00:23]} Nf6 {[%emt 0:00:07]} 8. Bxc4 {[%emt 0:00:12]} e6 {[%emt 0:00:04]} 9. O-O {[%emt 0:00:22]} Nbd7 {[%emt 0:02:06]} 10. Qe2 {[%emt 0:01:01]} Be7 {[%emt 0:00:48]} 11. Nbd2 {[%emt 0:01:19]} c5 {[%emt 0:02:46]} 12. e4 {[%emt 0:04:38]} cxd4 {[%emt 0:04:00]} 13. e5 {[%emt 0:02:10]} Nd5 {[%emt 0:00:29]} 14. Ne4 {[%emt 0:00:18]} Nc5 {[%emt 0:02:08]} 15. Nxc5 {[%emt 0:03:27]} Bxc5 {[%emt 0:00:14]} 16. Bg5 {[%emt 0:00:19]} Be7 {[%emt 0:01:53]} 17. Bd2 {[%emt 0:07:06]} O-O {[%emt 0:08:47]} 18. Bd3 {[%emt 0:00:53]} Nb6 {[%emt 0:02:16]} 19. h4 {[%emt 0:18:42]} Qd5 {[%emt 0:08:46]} 20. a5 {[%emt 0:08:27]} Nd7 {[%emt 0:00:06]} 21. Rfe1 {[%emt 0:00:11]} Rfc8 {[%emt 0:06:37]} 22. Qf1 {[%emt 0:10:04]} Nc5 {[%emt 0:00:11]} 23. Bc4 {[%emt 0:00:45]} Qd8 {[%emt 0:10:05]} 24. Bxb4 {[%emt 0:04:43]} Bxh4 {[%emt 0:04:17]} 25. Nxh4 {[%emt 0:06:33]} Qxh4 {[%emt 0:00:09]} 26. f3 {[%emt 0:00:15]} d3 {[%emt 0:03:12]} 27. Bxc5 {[%emt 0:05:18]} Rxc5 {[%emt 0:00:08]} 28. Bxd3 {[%emt 0:02:46]} Rxe5 {[%emt 0:00:22]} 29. Rxe5 {[%emt 0:01:22]} Qd4+ {[%emt 0:01:12]} 30. Qf2 {[%emt 0:00:12]} Qxe5 {[%emt 0:00:08]} 31. Qb6 {[%emt 0:00:26]} Rb8 {[%emt 0:02:01]} 32. Rc1 {[%emt 0:03:56]} g6 {[%emt 0:03:35]} 33. Rc7 {[%emt 0:02:05]} Rd8 {[%emt 0:03:45]} 34. Qxb7 {[%emt 0:06:24]} Qe3+ {[%emt 0:00:05]} 35. Kh2 {[%emt 0:00:25]} Qf4+ {[%emt 0:02:30]} 36. Kg1 {[%emt 0:02:21]} Rxd3 {[%emt 0:00:57]} 37. Qc8+ {[%emt 0:01:35]} Kg7 {[%emt 0:00:14]} 38. Rc1 {[%emt 0:00:08]} Qd4+ {[%emt 0:00:43]} 39. Kh2 {[%emt 0:00:34]} Qe5+ {[%emt 0:00:31]} 40. Kg1 {[%emt 0:01:41]} Qxb2 {[%emt 0:00:40]} 0-1

[Event "DEN-chT XtraCon 2018-19"]
[Site "Denmark"]
[Date "2019.03.16"]
[Round "8"]
[White "Papp, Gabor"]
[Black "Buhl Bjerre, Jonas"]
[Result "*"]
[ECO "B53"]
[WhiteElo "2599"]
[BlackElo "2463"]
[Annotator "ChessBase"]
[PlyCount "79"]
[EventDate "2018.10.27"]
[EventType "team-tourn"]
[EventCountry "DEN"]
[SourceTitle "playchess.com"]
[Source "ChessBase"]
[SourceQuality "1"]
[TimeControl "40/5400+30:1800+30"]

1. e4 {[%emt 0:00:00]} c5 {[%emt 0:00:00]} 2. Nf3 {[%emt 0:00:00]} d6 {[%emt 0:00:00]} 3. d4 {[%emt 0:00:00]} cxd4 {[%emt 0:00:00]} 4. Qxd4 {[%emt 0:00:00]} Nc6 {[%emt 0:01:13]} 5. Bb5 {[%emt 0:00:17]} Bd7 {[%emt 0:01:07]} 6. Qd3 {[%emt 0:00:29]} Nf6 {[%emt 0:03:42]} 7. c4 {[%emt 0:00:35]} g6 {[%emt 0:03:40]} 8. Nc3 {[%emt 0:00:36]} Bg7 {[%emt 0:01:49]} 9. h3 {[%emt 0:00:26]} O-O {[%emt 0:02:25]} 10. O-O {[%emt 0:00:30]} a6 {[%emt 0:03:43]} 11. Bxc6 {[%emt 0:01:10]} Bxc6 {[%emt 0:03:08]} 12. Nd4 {[%emt 0:00:16]} Nd7 {[%emt 0:04:30]} 13. Be3 {[%emt 0:03:37]} Rc8 {[%emt 0:08:43]} 14. Qd2 {[%emt 0:03:53]} Nc5 {[%emt 0:08:32]} 15. f3 {[%emt 0:00:47]} Bd7 {[%emt 0:03:29]} 16. Rac1 {[%emt 0:10:00]} Na4 {[%emt 0:03:36]} 17. Nxa4 {[%emt 0:14:30]} Bxa4 {[%emt 0:00:06]} 18. b3 {[%emt 0:01:20]} Bd7 {[%emt 0:00:56]} 19. a4 {[%emt 0:02:58]} b6 {[%emt 0:06:13]} 20. Rfd1 {[%emt 0:05:01]} Qc7 {[%emt 0:06:36]} 21. Ne2 {[%emt 0:06:48]} f5 {[%emt 0:08:00]} 22. exf5 {[%emt 0:00:15]} Rxf5 {[%emt 0:01:10]} 23. Nf4 {[%emt 0:02:39]} Qb7 {[%emt 0:02:26]} 24. Nd5 {[%emt 0:04:44]} Bc6 {[%emt 0:01:42]} 25. Nxb6 {[%emt 0:03:43]} Rcf8 {[%emt 0:03:19]} 26. Rf1 {[%emt 0:00:39]} a5 {[%emt 0:02:41]} 27. c5 {[%emt 0:14:06]} d5 {[%emt 0:02:38]} 28. Rcd1 {[%emt 0:00:04]} Qc7 {[%emt 0:03:16]} 29. f4 {[%emt 0:02:58]} g5 {[%emt 0:03:22]} 30. fxg5 {[%emt 0:06:00]} Rxf1+ {[%emt 0:00:07]} 31. Rxf1 {[%emt 0:00:04]} Rxf1+ {[%emt 0:00:30]} 32. Kxf1 {[%emt 0:00:03]} Qe5 {[%emt 0:00:52]} 33. Kg1 {[%emt 0:01:48]} Qe4 {[%emt 0:02:09]} 34. Bf2 {[%emt 0:02:19]} d4 {[%emt 0:01:29]} 35. Bg3 {[%emt 0:01:04]} d3 {[%emt 0:00:14]} 36. Nc8 {[%emt 0:05:07]} Bc3 {[%emt 0:04:44]} 37. Nxe7+ {[%emt 0:00:39]} Kf7 {[%emt 0:00:43]} 38. g6+ {[%emt 0:08:40]} hxg6 {[%emt 0:02:26]} 39. Qf2+ {[%emt 0:00:46]} Kxe7 {[%emt 0:00:57]} 40. Bd6+ {[%emt 0:00:05]} *

[Event "DEN-chT XtraCon 2018-19"]
[Site "Denmark"]
[Date "2019.03.16"]
[Round "8"]
[White "Hansen, Lars Bo"]
[Black "Manosri Jacobsen, Mikkel"]
[Result "0-1"]
[ECO "A45"]
[WhiteElo "2560"]
[BlackElo "2285"]
[Annotator "ChessBase"]
[PlyCount "80"]
[EventDate "2018.10.27"]
[EventType "team-tourn"]
[EventCountry "DEN"]
[SourceTitle "playchess.com"]
[Source "ChessBase"]
[SourceQuality "1"]
[TimeControl "40/5400+30:1800+30"]

1. d4 {[%emt 0:00:00]} Nf6 {[%emt 0:00:02]} 2. Bg5 c5 {[%emt 0:00:27]} 3. d5 {[%emt 0:00:15]} Ne4 {[%emt 0:01:05]} 4. Bf4 {[%emt 0:00:22]} Qb6 {[%emt 0:00:58]} 5. Bc1 {[%emt 0:01:02]} e6 {[%emt 0:03:23]} 6. f3 {[%emt 0:00:29]} Nf6 {[%emt 0:04:45]} 7. e4 {[%emt 0:02:26]} d6 {[%emt 0:03:24]} 8. Na3 {[%emt 0:01:52]} Qd8 {[%emt 0:06:45]} 9. Nc4 {[%emt 0:04:42]} Na6 {[%emt 0:28:59]} 10. Ne2 {[%emt 0:29:58]} exd5 {[%emt 0:26:29]} 11. exd5 {[%emt 0:00:54]} Nc7 {[%emt 0:00:06]} 12. Ne3 {[%emt 0:06:03]} g6 {[%emt 0:00:26]} 13. Ng3 {[%emt 0:02:36]} Bh6 {[%emt 0:03:06]} 14. c4 {[%emt 0:12:01]} O-O 15. Bd3 {[%emt 0:06:17]} Re8 {[%emt 0:07:25]} 16. Kf2 {[%emt 0:00:17]} b5 {[%emt 0:00:29]} 17. b3 {[%emt 0:12:22]} Bf4 {[%emt 0:05:03]} 18. Rb1 {[%emt 0:03:26]} h5 {[%emt 0:02:04]} 19. Qc2 {[%emt 0:03:43]} Bxe3+ {[%emt 0:01:30]} 20. Bxe3 {[%emt 0:00:05]} Ng4+ {[%emt 0:00:18]} 21. fxg4 {[%emt 0:00:40]} Qf6+ {[%emt 0:00:10]} 22. Nf5 {[%emt 0:04:25]} hxg4 {[%emt 0:00:55]} 23. Qb2 {[%emt 0:02:02]} Qxb2+ {[%emt 0:01:07]} 24. Rxb2 {[%emt 0:00:02]} Bxf5 {[%emt 0:00:17]} 25. Bxf5 {[%emt 0:00:15]} gxf5 {[%emt 0:00:04]} 26. Bf4 {[%emt 0:00:08]} Red8 {[%emt 0:02:23]} 27. Re2 {[%emt 0:00:37]} bxc4 {[%emt 0:00:51]} 28. bxc4 {[%emt 0:00:07]} Rab8 {[%emt 0:00:06]} 29. Bg5 {[%emt 0:04:26]} Rd7 {[%emt 0:00:45]} 30. h3 {[%emt 0:00:16]} Kg7 {[%emt 0:00:39]} 31. Bd2 {[%emt 0:00:52]} Rh8 {[%emt 0:00:49]} 32. h4 {[%emt 0:01:11]} Ne8 {[%emt 0:00:22]} 33. Bc3+ {[%emt 0:01:32]} Nf6 {[%emt 0:00:02]} 34. h5 {[%emt 0:00:53]} Rh6 {[%emt 0:00:57]} 35. Kg3 {[%emt 0:00:36]} Rd8 {[%emt 0:00:32]} 36. Re7 {[%emt 0:00:17]} Rdh8 {[%emt 0:00:12]} 37. Rxa7 {[%emt 0:00:20]} Rxh5 {[%emt 0:00:11]} 38. Re1 {[%emt 0:00:11]} Rh3+ {[%emt 0:00:27]} 39. gxh3 {[%emt 0:00:17]} Rxh3+ {[%emt 0:00:02]} 40. Kf4 {[%emt 0:01:05]} Kg6 {[%emt 0:00:17]} 0-1